[Event "Live Chess"]
[Site "Chess.com"]
[Date "2024.06.02"]
[Round "-"]
[White "oscalik"]
[Black "KGreenGator"]
[Result "0-1"]
[WhiteElo "2246"]
[BlackElo "1775"]
[TimeControl "300"]
[EndTime "18:53:07 PDT"]
[Termination "KGreenGator won by checkmate"]

1. e4 {[%clk 0:04:57.3]} 1... c5 {[%clk 0:04:58.1]} 2. Nc3 {[%clk 0:04:55.3]}
2... e6 {[%clk 0:04:56.1]} 3. g3 {[%clk 0:04:53.7]} 3... d5 {[%clk 0:04:54.9]}
4. Bg2 {[%clk 0:04:53.3]} 4... d4 {[%clk 0:04:52.7]} 5. Nb1 {[%clk 0:04:51.9]}
5... Nc6 {[%clk 0:04:50.9]} 6. d3 {[%clk 0:04:51.3]} 6... Bd6 {[%clk 0:04:48.3]}
7. f4 {[%clk 0:04:50.8]} 7... e5 {[%clk 0:04:46.5]} 8. Nf3 {[%clk 0:04:49.5]}
8... exf4 {[%clk 0:04:44.1]} 9. gxf4 {[%clk 0:04:48]} 9... Bg4 {[%clk
0:04:41.2]} 10. O-O {[%clk 0:04:46]} 10... Nge7 {[%clk 0:04:36.2]} 11. Qe1
{[%clk 0:04:44.2]} 11... O-O {[%clk 0:04:34.2]} 12. Nbd2 {[%clk 0:04:42.5]}
12... Ng6 {[%clk 0:04:32.3]} 13. Nc4 {[%clk 0:04:39.5]} 13... Bxf4 {[%clk
0:04:29.8]} 14. h3 {[%clk 0:04:22.1]} 14... Bh5 {[%clk 0:04:25.3]} 15. Kh1
{[%clk 0:04:10.8]} 15... b5 {[%clk 0:04:19.1]} 16. Na3 {[%clk 0:04:03.1]} 16...
b4 {[%clk 0:04:17.2]} 17. Nc4 {[%clk 0:04:01.3]} 17... Bxc1 {[%clk 0:04:09.4]}
18. Rxc1 {[%clk 0:03:59.1]} 18... f6 {[%clk 0:04:07.8]} 19. Qg3 {[%clk 0:03:53]}
19... a5 {[%clk 0:03:56]} 20. Nd6 {[%clk 0:03:45.7]} 20... Qe7 {[%clk
0:03:52.1]} 21. Nf5 {[%clk 0:03:39.8]} 21... Qe6 {[%clk 0:03:44.1]} 22. Rce1
{[%clk 0:03:32.4]} 22... Nce5 {[%clk 0:03:41.6]} 23. N3h4 {[%clk 0:03:26]} 23...
Ra7 {[%clk 0:03:34.7]} 24. Rf2 {[%clk 0:02:55.3]} 24... Qxa2 {[%clk 0:03:23.9]}
25. b3 {[%clk 0:02:50.2]} 25... a4 {[%clk 0:03:21.3]} 26. bxa4 {[%clk 0:02:19]}
26... Qxa4 {[%clk 0:03:08.9]} 27. Nd6 {[%clk 0:02:02.9]} 27... Rd8 {[%clk
0:02:58.7]} 28. Nhf5 {[%clk 0:01:58.9]} 28... Qc6 {[%clk 0:02:46.9]} 29. Nc4
{[%clk 0:01:49.2]} 29... Nxc4 {[%clk 0:02:27.4]} 30. dxc4 {[%clk 0:01:46.9]}
30... Qc7 {[%clk 0:02:26.1]} 31. e5 {[%clk 0:01:35.4]} 31... fxe5 {[%clk
0:02:20.1]} 32. Bd5+ {[%clk 0:01:33.7]} 32... Kh8 {[%clk 0:02:16.6]} 33. Qg5
{[%clk 0:01:32.3]} 33... Nf4 {[%clk 0:02:09.8]} 34. Rxf4 {[%clk 0:01:28.4]}
34... exf4 {[%clk 0:02:07.9]} 35. Re7 {[%clk 0:01:22.8]} 35... Qxe7 {[%clk
0:01:45.2]} 36. Nxe7 {[%clk 0:01:20.7]} 36... Ra1+ {[%clk 0:01:13.4]} 37. Kh2
{[%clk 0:01:18.1]} 37... Re8 {[%clk 0:01:10.3]} 38. Qxh5 {[%clk 0:01:14]} 38...
Rxe7 {[%clk 0:01:08.4]} 39. Qg4 {[%clk 0:00:59.2]} 39... g5 {[%clk 0:00:45.9]}
40. h4 {[%clk 0:00:55.7]} 40... h6 {[%clk 0:00:42.2]} 41. hxg5 {[%clk
0:00:54.3]} 41... hxg5 {[%clk 0:00:40.7]} 42. Qh5+ {[%clk 0:00:52.5]} 42... Rh7
{[%clk 0:00:37.9]} 43. Qxh7+ {[%clk 0:00:27.3]} 43... Kxh7 {[%clk 0:00:37]} 44.
Kh3 {[%clk 0:00:25.1]} 44... Kh6 {[%clk 0:00:36]} 45. Kg4 {[%clk 0:00:24.3]}
45... Rb1 {[%clk 0:00:32.9]} 46. Kf5 {[%clk 0:00:20]} 46... b3 {[%clk 0:00:32]}
47. cxb3 {[%clk 0:00:18.7]} 47... Rxb3 {[%clk 0:00:30.9]} 48. Ke5 {[%clk
0:00:18.6]} 48... f3 {[%clk 0:00:29.2]} 49. Kd6 {[%clk 0:00:16.7]} 49... f2
{[%clk 0:00:28.4]} 50. Bg2 {[%clk 0:00:16.4]} 50... Rc3 {[%clk 0:00:26.4]} 51.
Kxc5 {[%clk 0:00:15.2]} 51... d3 {[%clk 0:00:24.3]} 52. Kd4 {[%clk 0:00:14.9]}
52... Ra3 {[%clk 0:00:22.6]} 53. c5 {[%clk 0:00:13.5]} 53... d2 {[%clk
0:00:21.7]} 54. Bf3 {[%clk 0:00:12.1]} 54... Rxf3 {[%clk 0:00:18.9]} 55. c6
{[%clk 0:00:10.6]} 55... Rf7 {[%clk 0:00:17.1]} 56. Ke4 {[%clk 0:00:10.5]} 56...
f1=Q {[%clk 0:00:15]} 57. c7 {[%clk 0:00:10.4]} 57... Qe1+ {[%clk 0:00:14.2]}
58. Kd5 {[%clk 0:00:09.4]} 58... Rxc7 {[%clk 0:00:13]} 59. Kd6 {[%clk
0:00:08.5]} 59... d1=Q+ {[%clk 0:00:11.4]} 60. Kxc7 {[%clk 0:00:06.2]} 60...
Qc3+ {[%clk 0:00:11.1]} 61. Kb6 {[%clk 0:00:05.2]} 61... Qb1+ {[%clk 0:00:10.9]}
62. Ka7 {[%clk 0:00:03.9]} 62... Qca1# {[%clk 0:00:10.8]} 0-1

[Event "Live Chess"]
[Site "Chess.com"]
[Date "2024.06.02"]
[Round "-"]
[White "RockTroll"]
[Black "RafaelRony"]
[Result "1-0"]
[WhiteElo "2209"]
[BlackElo "1074"]
[TimeControl "300"]
[EndTime "18:53:12 PDT"]
[Termination "RockTroll won by resignation"]

1. Nf3 {[%clk 0:04:54.3]} 1... d5 {[%clk 0:04:58.5]} 2. g3 {[%clk 0:04:53.7]}
2... c5 {[%clk 0:04:57.7]} 3. Bg2 {[%clk 0:04:50.4]} 3... Nc6 {[%clk 0:04:57.2]}
4. d4 {[%clk 0:04:47.9]} 4... cxd4 {[%clk 0:04:52.6]} 5. Nxd4 {[%clk 0:04:47.8]}
5... e5 {[%clk 0:04:50.6]} 6. Nxc6 {[%clk 0:04:39.6]} 6... bxc6 {[%clk
0:04:49.9]} 7. c4 {[%clk 0:04:33.2]} 7... Nf6 {[%clk 0:04:45.5]} 8. Nc3 {[%clk
0:04:16]} 8... Bb4 {[%clk 0:04:35.1]} 9. cxd5 {[%clk 0:04:04.2]} 9... cxd5
{[%clk 0:04:33.1]} 10. Qa4+ {[%clk 0:04:01.8]} 10... Bd7 {[%clk 0:04:28.7]} 11.
Qxb4 {[%clk 0:04:00]} 11... d4 {[%clk 0:04:26.6]} 12. Ne4 {[%clk 0:03:55.8]}
12... Rb8 {[%clk 0:04:24.1]} 13. Nxf6+ {[%clk 0:03:52.8]} 13... Qxf6 {[%clk
0:04:23]} 14. Qxb8+ {[%clk 0:03:51.4]} 1-0

[Event "Live Chess"]
[Site "Chess.com"]
[Date "2024.06.02"]
[Round "-"]
[White "NeilDruggan73"]
[Black "Mikhail_Golubev"]
[Result "0-1"]
[WhiteElo "1779"]
[BlackElo "2575"]
[TimeControl "300"]
[EndTime "18:53:40 PDT"]
[Termination "Mikhail_Golubev won by checkmate"]

1. d4 {[%clk 0:04:55.8]} 1... g6 {[%clk 0:04:58.7]} 2. e4 {[%clk 0:04:50.1]}
2... d6 {[%clk 0:04:57.9]} 3. Bc4 {[%clk 0:04:43.9]} 3... Bg7 {[%clk 0:04:54.8]}
4. Be3 {[%clk 0:04:33.8]} 4... Nf6 {[%clk 0:04:48.8]} 5. f3 {[%clk 0:04:27.3]}
5... d5 {[%clk 0:04:45.4]} 6. exd5 {[%clk 0:04:18.7]} 6... Nxd5 {[%clk
0:04:45.3]} 7. Bxd5 {[%clk 0:04:11.2]} 7... Qxd5 {[%clk 0:04:43]} 8. Nc3 {[%clk
0:04:10.9]} 8... Qa5 {[%clk 0:04:18.4]} 9. Qd2 {[%clk 0:04:05.4]} 9... O-O
{[%clk 0:04:16]} 10. O-O-O {[%clk 0:04:01.1]} 10... Rd8 {[%clk 0:04:02.1]} 11.
Bh6 {[%clk 0:03:50.9]} 11... Rxd4 {[%clk 0:03:44.9]} 12. Qxd4 {[%clk 0:03:28.4]}
12... Bxd4 {[%clk 0:03:43.1]} 13. Rxd4 {[%clk 0:03:27.2]} 13... Nc6 {[%clk
0:03:42.4]} 14. Rd5 {[%clk 0:03:23.9]} 14... Qa6 {[%clk 0:03:36]} 15. Nge2
{[%clk 0:03:20.1]} 15... Be6 {[%clk 0:03:34.6]} 16. Rd2 {[%clk 0:03:10.1]} 16...
b5 {[%clk 0:03:06.4]} 17. Rhd1 {[%clk 0:03:07.2]} 17... b4 {[%clk 0:02:54.3]}
18. Nd5 {[%clk 0:02:30.5]} 18... Qxa2 {[%clk 0:02:37.8]} 19. Nxe7+ {[%clk
0:02:27.4]} 19... Kh8 {[%clk 0:02:32.5]} 20. Rd3 {[%clk 0:01:13.8]} 20... Nxe7
{[%clk 0:02:18.4]} 21. Rd8+ {[%clk 0:01:10.5]} 21... Rxd8 {[%clk 0:02:17.4]} 22.
Rxd8+ {[%clk 0:01:09.1]} 22... Ng8 {[%clk 0:02:17]} 23. Ng3 {[%clk 0:00:58.5]}
23... Qa1+ {[%clk 0:01:44.1]} 24. Kd2 {[%clk 0:00:56.7]} 24... Qxb2 {[%clk
0:01:44]} 25. Ne4 {[%clk 0:00:55.2]} 25... f6 {[%clk 0:00:55.5]} 26. g4 {[%clk
0:00:30.2]} 26... b3 {[%clk 0:00:38.5]} 27. Ke3 {[%clk 0:00:23.2]} 27... bxc2
{[%clk 0:00:35.2]} 28. Kf2 {[%clk 0:00:19.2]} 28... c1=Q+ {[%clk 0:00:33.5]} 29.
Kg3 {[%clk 0:00:13.7]} 29... Qxh6 {[%clk 0:00:29.5]} 30. Nxf6 {[%clk 0:00:12.2]}
30... Qbxh2# {[%clk 0:00:25.2]} 0-1

[Event "Live Chess"]
[Site "Chess.com"]
[Date "2024.06.02"]
[Round "-"]
[White "juniortay"]
[Black "RafaelRony"]
[Result "1-0"]
[WhiteElo "2423"]
[BlackElo "1074"]
[TimeControl "300"]
[EndTime "18:54:15 PDT"]
[Termination "juniortay won by resignation"]

1. e4 {[%clk 0:04:57.9]} 1... c5 {[%clk 0:04:59]} 2. Nf3 {[%clk 0:04:57.4]} 2...
Nc6 {[%clk 0:04:58.2]} 3. b4 {[%clk 0:04:56.5]} 3... cxb4 {[%clk 0:04:54.1]} 4.
d4 {[%clk 0:04:55.9]} 4... d5 {[%clk 0:04:51.5]} 5. exd5 {[%clk 0:04:55.8]} 5...
Qxd5 {[%clk 0:04:50.2]} 6. c4 {[%clk 0:04:55.7]} 6... Qd8 {[%clk 0:04:47.4]} 7.
d5 {[%clk 0:04:54.3]} 7... Nb8 {[%clk 0:04:43.9]} 8. Qa4+ {[%clk 0:04:53.9]}
8... Bd7 {[%clk 0:04:42.7]} 9. Qxb4 {[%clk 0:04:53.4]} 9... Qc7 {[%clk
0:04:36.2]} 10. Be2 {[%clk 0:04:50.5]} 10... e6 {[%clk 0:04:35.1]} 11. Qb3
{[%clk 0:04:49.8]} 11... exd5 {[%clk 0:04:34]} 12. O-O {[%clk 0:04:48]} 12...
dxc4 {[%clk 0:04:29.3]} 13. Bxc4 {[%clk 0:04:46.6]} 1-0

[Event "Live Chess"]
[Site "Chess.com"]
[Date "2024.06.02"]
[Round "-"]
[White "nigelst"]
[Black "asingardenof"]
[Result "1-0"]
[WhiteElo "1740"]
[BlackElo "626"]
[TimeControl "300"]
[EndTime "18:54:18 PDT"]
[Termination "nigelst won by checkmate"]

1. e4 {[%clk 0:04:56.7]} 1... c6 {[%clk 0:04:58]} 2. d4 {[%clk 0:04:54.9]} 2...
d5 {[%clk 0:04:57.2]} 3. exd5 {[%clk 0:04:53.8]} 3... cxd5 {[%clk 0:04:57.1]} 4.
Bd3 {[%clk 0:04:52.9]} 4... Nc6 {[%clk 0:04:53]} 5. c3 {[%clk 0:04:51.9]} 5...
Nf6 {[%clk 0:04:51.1]} 6. Nf3 {[%clk 0:04:50.2]} 6... e6 {[%clk 0:04:49.9]} 7.
Bf4 {[%clk 0:04:48.3]} 7... Be7 {[%clk 0:04:45]} 8. O-O {[%clk 0:04:46.5]} 8...
O-O {[%clk 0:04:42.9]} 9. Re1 {[%clk 0:04:44.1]} 9... Nh5 {[%clk 0:04:40.3]} 10.
Bg3 {[%clk 0:04:42.1]} 10... Nxg3 {[%clk 0:04:38.3]} 11. hxg3 {[%clk 0:04:40.6]}
11... Bd6 {[%clk 0:04:35.2]} 12. Bc2 {[%clk 0:04:37.3]} 12... f6 {[%clk
0:04:27.4]} 13. Qd3 {[%clk 0:04:34.5]} 13... g6 {[%clk 0:04:24.5]} 14. Nh4
{[%clk 0:04:30.9]} 14... Qe8 {[%clk 0:04:19.5]} 15. Nd2 {[%clk 0:04:23.2]} 15...
Kg7 {[%clk 0:04:16.1]} 16. Ndf3 {[%clk 0:04:09.6]} 16... f5 {[%clk 0:04:16]} 17.
Ng5 {[%clk 0:03:57.5]} 17... Nd8 {[%clk 0:04:00]} 18. Qd2 {[%clk 0:03:46.8]}
18... h6 {[%clk 0:03:51.4]} 19. Ngf3 {[%clk 0:03:41]} 19... Nf7 {[%clk
0:03:43.4]} 20. Bxf5 {[%clk 0:03:30.2]} 20... exf5 {[%clk 0:03:38.4]} 21. Nxf5+
{[%clk 0:03:27.6]} 21... gxf5 {[%clk 0:03:34.6]} 22. Rxe8 {[%clk 0:03:24.3]}
22... Rxe8 {[%clk 0:03:30.9]} 23. Re1 {[%clk 0:03:22.6]} 23... Be6 {[%clk
0:03:15.3]} 24. Nh4 {[%clk 0:03:10.9]} 24... Kf8 {[%clk 0:02:51.2]} 25. Ng6+
{[%clk 0:03:06.6]} 25... Kg7 {[%clk 0:02:47.6]} 26. Nf4 {[%clk 0:03:03.9]} 26...
Kf8 {[%clk 0:02:42]} 27. Nxe6+ {[%clk 0:02:55.7]} 27... Ke7 {[%clk 0:02:40.1]}
28. Ng7+ {[%clk 0:02:52]} 28... Kf8 {[%clk 0:02:32.2]} 29. Nxe8 {[%clk
0:02:50.1]} 29... Rxe8 {[%clk 0:02:32.1]} 30. Rxe8+ {[%clk 0:02:47.2]} 30...
Kxe8 {[%clk 0:02:32]} 31. Qe2+ {[%clk 0:02:40.9]} 31... Kf8 {[%clk 0:02:30.6]}
32. Qh5 {[%clk 0:02:38.3]} 32... Be7 {[%clk 0:02:21.7]} 33. Qxf5 {[%clk
0:02:35.3]} 33... Ke8 {[%clk 0:02:15.2]} 34. f4 {[%clk 0:02:28.1]} 34... Nd6
{[%clk 0:02:13.7]} 35. Qxd5 {[%clk 0:02:25.5]} 35... a5 {[%clk 0:02:02.2]} 36.
Qe6 {[%clk 0:02:23.1]} 36... h5 {[%clk 0:01:55.2]} 37. f5 {[%clk 0:02:20.9]}
37... Nf7 {[%clk 0:01:51.5]} 38. f6 {[%clk 0:02:19.2]} 38... Kf8 {[%clk
0:01:35.9]} 39. Qxe7+ {[%clk 0:02:15]} 39... Kg8 {[%clk 0:01:33.6]} 40. Qe8+
{[%clk 0:02:14]} 40... Kh7 {[%clk 0:01:32.1]} 41. Qxf7+ {[%clk 0:02:12.4]} 41...
Kh6 {[%clk 0:01:28.3]} 42. Qg7# {[%clk 0:02:10.7]} 1-0

[Event "Live Chess"]
[Site "Chess.com"]
[Date "2024.06.02"]
[Round "-"]
[White "WelshTiger"]
[Black "ShanthamGrarks"]
[Result "1-0"]
[WhiteElo "2441"]
[BlackElo "1876"]
[TimeControl "300"]
[EndTime "18:55:01 PDT"]
[Termination "WelshTiger won by resignation"]

1. e4 {[%clk 0:04:57]} 1... e6 {[%clk 0:04:56.2]} 2. d4 {[%clk 0:04:55.7]} 2...
d5 {[%clk 0:04:54.8]} 3. Nd2 {[%clk 0:04:55.4]} 3... Nf6 {[%clk 0:04:51.6]} 4.
e5 {[%clk 0:04:54.4]} 4... Nfd7 {[%clk 0:04:50.8]} 5. Bd3 {[%clk 0:04:54]} 5...
c5 {[%clk 0:04:50.3]} 6. c3 {[%clk 0:04:53.5]} 6... Nc6 {[%clk 0:04:49.8]} 7.
Ne2 {[%clk 0:04:51.9]} 7... Qb6 {[%clk 0:04:49.3]} 8. Nf3 {[%clk 0:04:48.8]}
8... h6 {[%clk 0:04:48.3]} 9. O-O {[%clk 0:04:43.7]} 9... Be7 {[%clk 0:04:47.7]}
10. a3 {[%clk 0:04:40.8]} 10... cxd4 {[%clk 0:04:46.3]} 11. cxd4 {[%clk
0:04:39.2]} 11... Qc7 {[%clk 0:04:31.2]} 12. b4 {[%clk 0:04:37.2]} 12... a6
{[%clk 0:04:29.9]} 13. Be3 {[%clk 0:04:28.6]} 13... b5 {[%clk 0:04:28.3]} 14.
Rc1 {[%clk 0:04:27.6]} 14... Qd8 {[%clk 0:04:25.4]} 15. Rxc6 {[%clk 0:04:24.9]}
15... Bb7 {[%clk 0:04:23.6]} 16. Rc1 {[%clk 0:04:23.1]} 16... O-O {[%clk
0:04:20.8]} 17. Bb1 {[%clk 0:04:21.1]} 17... f5 {[%clk 0:04:17.2]} 18. exf6
{[%clk 0:04:18.2]} 18... Nxf6 {[%clk 0:04:16.7]} 19. Ne5 {[%clk 0:04:12.2]}
19... a5 {[%clk 0:04:09.3]} 20. Qd3 {[%clk 0:03:59.3]} 20... axb4 {[%clk
0:03:59.7]} 21. axb4 {[%clk 0:03:59.2]} 21... Bxb4 {[%clk 0:03:47.1]} 22. Bxh6
{[%clk 0:03:50.6]} 22... Ra3 {[%clk 0:03:39.4]} 23. Qg6 {[%clk 0:03:49.3]} 23...
Qe7 {[%clk 0:03:29.1]} 24. Bg5 {[%clk 0:03:41.6]} 24... Bd6 {[%clk 0:03:17.2]}
25. Bxf6 {[%clk 0:03:37.2]} 25... Rxf6 {[%clk 0:02:58.6]} 26. Qh7+ {[%clk
0:03:35.8]} 1-0

[Event "Live Chess"]
[Site "Chess.com"]
[Date "2024.06.02"]
[Round "-"]
[White "e4evr"]
[Black "KeithArkell"]
[Result "0-1"]
[WhiteElo "2225"]
[BlackElo "2446"]
[TimeControl "300"]
[EndTime "18:55:03 PDT"]
[Termination "KeithArkell won by checkmate"]

1. c3 {[%clk 0:04:58.4]} 1... d5 {[%clk 0:04:57.8]} 2. h4 {[%clk 0:04:57.6]}
2... c5 {[%clk 0:04:56.6]} 3. Nf3 {[%clk 0:04:57.2]} 3... Nc6 {[%clk 0:04:56.1]}
4. d3 {[%clk 0:04:56.6]} 4... Nf6 {[%clk 0:04:54.7]} 5. Bf4 {[%clk 0:04:56]}
5... Bg4 {[%clk 0:04:53.7]} 6. Nbd2 {[%clk 0:04:54.7]} 6... e6 {[%clk
0:04:53.2]} 7. Bh2 {[%clk 0:04:53.7]} 7... Bd6 {[%clk 0:04:52.3]} 8. Bg1 {[%clk
0:04:53.2]} 8... Qc7 {[%clk 0:04:48.8]} 9. Qa4 {[%clk 0:04:50.6]} 9... O-O-O
{[%clk 0:04:47.2]} 10. O-O-O {[%clk 0:04:44.5]} 10... h5 {[%clk 0:04:46.3]} 11.
Kb1 {[%clk 0:04:42.7]} 11... Kb8 {[%clk 0:04:45.6]} 12. g3 {[%clk 0:04:39.2]}
12... Bf5 {[%clk 0:04:44.5]} 13. Bg2 {[%clk 0:04:37.1]} 13... c4 {[%clk
0:04:43.8]} 14. Ng5 {[%clk 0:04:20.3]} 14... cxd3 {[%clk 0:04:40.5]} 15. exd3
{[%clk 0:04:19.6]} 15... Bxd3+ {[%clk 0:04:39.7]} 16. Ka1 {[%clk 0:04:19.2]}
16... b5 {[%clk 0:04:38.8]} 17. Qa6 {[%clk 0:04:08]} 17... Rd7 {[%clk
0:04:34.9]} 18. f4 {[%clk 0:04:02.8]} 18... Qb7 {[%clk 0:04:29.5]} 19. Qxb7+
{[%clk 0:03:59.5]} 19... Kxb7 {[%clk 0:04:28.8]} 20. Nb3 {[%clk 0:03:58.8]}
20... Bc4 {[%clk 0:04:23]} 21. Be3 {[%clk 0:03:54.9]} 21... Ng4 {[%clk
0:04:21.7]} 22. Bd4 {[%clk 0:03:52]} 22... Nxd4 {[%clk 0:04:18.8]} 23. Rxd4
{[%clk 0:03:50.3]} 23... Ne3 {[%clk 0:04:12.9]} 24. Na5+ {[%clk 0:03:48.4]}
24... Kb6 {[%clk 0:04:11.8]} 25. Nxc4+ {[%clk 0:03:47.3]} 25... bxc4 {[%clk
0:04:10.9]} 26. Bf3 {[%clk 0:03:44.9]} 26... Nf5 {[%clk 0:04:07.1]} 27. Rd2
{[%clk 0:03:37.3]} 27... Nxg3 {[%clk 0:04:06.2]} 28. Re1 {[%clk 0:03:35]} 28...
Bxf4 {[%clk 0:04:05.3]} 29. Rg2 {[%clk 0:03:31.7]} 29... Nf5 {[%clk 0:04:02.2]}
30. Nxe6 {[%clk 0:03:27.7]} 30... fxe6 {[%clk 0:04:00.6]} 31. Rxe6+ {[%clk
0:03:27.2]} 31... Rd6 {[%clk 0:03:57]} 32. Bxd5 {[%clk 0:03:26.5]} 32... Rxe6
{[%clk 0:03:55.8]} 33. Bxe6 {[%clk 0:03:26.4]} 33... Nxh4 {[%clk 0:03:55.2]} 34.
Rxg7 {[%clk 0:03:24.7]} 34... Re8 {[%clk 0:03:48.3]} 35. Bf5 {[%clk 0:03:18.4]}
35... Re1+ {[%clk 0:03:46.9]} 36. Bb1 {[%clk 0:03:17.3]} 36... Nf3 {[%clk
0:03:45.8]} 37. Rg6+ {[%clk 0:03:12.4]} 37... Kc7 {[%clk 0:03:43.6]} 38. Rg1
{[%clk 0:03:05.8]} 38... Rxg1 {[%clk 0:03:41]} 39. a4 {[%clk 0:03:04]} 39... Nd2
{[%clk 0:03:40]} 40. Ka2 {[%clk 0:03:03.3]} 40... Rxb1 {[%clk 0:03:39]} 41. a5
{[%clk 0:03:02.7]} 41... Bd6 {[%clk 0:03:36.9]} 42. a6 {[%clk 0:03:00.9]} 42...
Kb6 {[%clk 0:03:35.6]} 43. b4 {[%clk 0:02:59.3]} 43... cxb3# {[%clk 0:03:34.5]}
0-1

[Event "Live Chess"]
[Site "Chess.com"]
[Date "2024.06.02"]
[Round "-"]
[White "RafaelRony"]
[Black "Mikhail_Golubev"]
[Result "0-1"]
[WhiteElo "1074"]
[BlackElo "2575"]
[TimeControl "300"]
[EndTime "18:55:45 PDT"]
[Termination "Mikhail_Golubev won by resignation"]

1. e4 {[%clk 0:04:59.6]} 1... c5 {[%clk 0:04:56.9]} 2. Nf3 {[%clk 0:04:58.9]}
2... Nc6 {[%clk 0:04:54]} 3. d4 {[%clk 0:04:58.3]} 3... cxd4 {[%clk 0:04:52.7]}
4. Nxd4 {[%clk 0:04:57.8]} 4... g6 {[%clk 0:04:50.9]} 5. Nc3 {[%clk 0:04:55.3]}
5... Bg7 {[%clk 0:04:49.6]} 6. Be3 {[%clk 0:04:54.7]} 6... Nf6 {[%clk 0:04:48]}
7. f3 {[%clk 0:04:51.1]} 7... O-O {[%clk 0:04:45.4]} 8. Qd2 {[%clk 0:04:48.5]}
8... d5 {[%clk 0:04:42.6]} 9. exd5 {[%clk 0:04:40.6]} 9... Nxd5 {[%clk
0:04:40.3]} 10. Bc4 {[%clk 0:04:33.7]} 10... Nxe3 {[%clk 0:04:34.3]} 11. Qxe3
{[%clk 0:04:31.1]} 11... Bxd4 {[%clk 0:04:28.7]} 12. Qh6 {[%clk 0:04:28.6]}
12... Qa5 {[%clk 0:04:17.2]} 0-1

[Event "Live Chess"]
[Site "Chess.com"]
[Date "2024.06.02"]
[Round "-"]
[White "Crowded_House"]
[Black "grillage"]
[Result "0-1"]
[WhiteElo "1688"]
[BlackElo "1861"]
[TimeControl "300"]
[EndTime "18:56:06 PDT"]
[Termination "grillage won by resignation"]

1. d4 {[%clk 0:04:58.5]} 1... e6 {[%clk 0:04:58.4]} 2. Nf3 {[%clk 0:04:53.1]}
2... Nf6 {[%clk 0:04:56.9]} 3. Bg5 {[%clk 0:04:52.4]} 3... Be7 {[%clk
0:04:52.1]} 4. e3 {[%clk 0:04:51.1]} 4... c5 {[%clk 0:04:51.2]} 5. c3 {[%clk
0:04:49.6]} 5... cxd4 {[%clk 0:04:50.5]} 6. cxd4 {[%clk 0:04:44.9]} 6... b6
{[%clk 0:04:49.8]} 7. Bd3 {[%clk 0:04:40.6]} 7... Ba6 {[%clk 0:04:48.4]} 8. Qe2
{[%clk 0:04:36.3]} 8... Bxd3 {[%clk 0:04:46.7]} 9. Qxd3 {[%clk 0:04:35.3]} 9...
O-O {[%clk 0:04:45.1]} 10. O-O {[%clk 0:04:32.9]} 10... d6 {[%clk 0:04:44.3]}
11. Nbd2 {[%clk 0:04:30.7]} 11... Nbd7 {[%clk 0:04:42.9]} 12. a3 {[%clk
0:04:26.4]} 12... Rc8 {[%clk 0:04:41.7]} 13. Rac1 {[%clk 0:04:24.8]} 13... Nd5
{[%clk 0:04:34.2]} 14. Bxe7 {[%clk 0:04:22.9]} 14... Qxe7 {[%clk 0:04:33.1]} 15.
Qb1 {[%clk 0:04:16.3]} 15... N5f6 {[%clk 0:04:24.5]} 16. Rxc8 {[%clk 0:04:13.2]}
16... Rxc8 {[%clk 0:04:22.8]} 17. Rc1 {[%clk 0:04:12.8]} 17... Rxc1+ {[%clk
0:04:21.7]} 18. Qxc1 {[%clk 0:04:12.2]} 18... h6 {[%clk 0:04:20.7]} 19. Qc7
{[%clk 0:04:06.6]} 19... a6 {[%clk 0:04:14.6]} 20. Nc4 {[%clk 0:03:58.3]} 20...
Nd5 {[%clk 0:04:11.9]} 21. Qxd6 {[%clk 0:03:51.9]} 21... Qxd6 {[%clk 0:04:05.7]}
22. Nxd6 {[%clk 0:03:50.9]} 22... Kf8 {[%clk 0:03:54.4]} 23. Nd2 {[%clk
0:03:46.6]} 23... b5 {[%clk 0:03:53]} 24. Nb3 {[%clk 0:03:30.3]} 24... Ke7
{[%clk 0:03:46.8]} 25. Ne4 {[%clk 0:03:29.2]} 25... N7b6 {[%clk 0:03:42.4]} 26.
Ned2 {[%clk 0:03:20.6]} 26... Na4 {[%clk 0:03:38.9]} 27. Nc5 {[%clk 0:03:10.4]}
27... Nxb2 {[%clk 0:03:33.7]} 28. Nxa6 {[%clk 0:03:08.6]} 28... Kd6 {[%clk
0:03:20.3]} 29. Kf1 {[%clk 0:03:00.7]} 29... Nc3 {[%clk 0:03:16.7]} 30. Ke1
{[%clk 0:02:39.3]} 30... Nd3+ {[%clk 0:03:09.4]} 31. Kf1 {[%clk 0:02:34.8]}
31... Kc6 {[%clk 0:03:07.3]} 32. Nb4+ {[%clk 0:02:32.8]} 32... Nxb4 {[%clk
0:03:05.4]} 33. axb4 {[%clk 0:02:32.1]} 33... Na2 {[%clk 0:03:03.7]} 34. Ke2
{[%clk 0:02:25.3]} 34... Nxb4 {[%clk 0:03:02.5]} 35. Nb3 {[%clk 0:02:23]} 35...
Nd5 {[%clk 0:02:58.1]} 36. Kd3 {[%clk 0:02:18.5]} 36... f5 {[%clk 0:02:56.9]}
37. f3 {[%clk 0:02:16.5]} 37... g5 {[%clk 0:02:53.7]} 38. e4 {[%clk 0:02:15]}
38... Nf4+ {[%clk 0:02:50.8]} 39. Ke3 {[%clk 0:02:12.3]} 39... Nxg2+ {[%clk
0:02:49.7]} 40. Kf2 {[%clk 0:02:10.5]} 40... Nf4 {[%clk 0:02:47.9]} 41. exf5
{[%clk 0:02:08.8]} 41... exf5 {[%clk 0:02:46.9]} 42. Ke3 {[%clk 0:01:58.3]}
42... Kd5 {[%clk 0:02:44.8]} 43. Kd2 {[%clk 0:01:39.8]} 43... b4 {[%clk
0:02:41.5]} 44. Ke3 {[%clk 0:01:37.7]} 44... Kc4 {[%clk 0:02:39.5]} 45. Na5+
{[%clk 0:01:23.3]} 45... Kc3 {[%clk 0:02:37.3]} 46. d5 {[%clk 0:01:17.6]} 46...
Nxd5+ {[%clk 0:02:35.1]} 47. Ke2 {[%clk 0:01:15.9]} 47... b3 {[%clk 0:02:31.3]}
48. Nxb3 {[%clk 0:01:14.1]} 48... Kxb3 {[%clk 0:02:30.4]} 49. f4 {[%clk
0:01:13.8]} 49... g4 {[%clk 0:02:27.8]} 50. h3 {[%clk 0:01:08]} 50... Nxf4+
{[%clk 0:02:26.3]} 51. Kf2 {[%clk 0:01:04.3]} 51... Nxh3+ {[%clk 0:02:25.7]} 52.
Kg3 {[%clk 0:01:04.2]} 52... h5 {[%clk 0:02:19.6]} 53. Kh4 {[%clk 0:01:02.6]}
53... f4 {[%clk 0:02:17.9]} 54. Kxh5 {[%clk 0:01:01.8]} 54... f3 {[%clk
0:02:17.4]} 55. Kxg4 {[%clk 0:01:01.7]} 55... f2 {[%clk 0:02:16.8]} 56. Kxh3
{[%clk 0:01:01.6]} 56... f1=Q+ {[%clk 0:02:15.8]} 57. Kg3 {[%clk 0:01:01.5]}
57... Kc3 {[%clk 0:02:13.7]} 58. Kg4 {[%clk 0:01:01.4]} 58... Kd4 {[%clk
0:02:13.1]} 0-1